[Event "XTX Markets London Masters 2024"]
[Site "London"]
[Date "2024.11.30"]
[Round "3.1"]
[White "Sadhwani, Raunak"]
[Black "Wadsworth, Matthew J"]
[Result "1/2-1/2"]
[ECO "D12"]
[WhiteElo "2677"]
[BlackElo "2461"]
[Annotator "TA"]
[PlyCount "33"]
[EventDate "2024.11.28"]
[EventType "swiss"]
[EventCountry "ENG"]
[SourceTitle "playchess.com"]
[Source "ChessBase"]
[SourceQuality "1"]
[TimeControl "40/5400+30:1800+30"]

{[%evp 12,33,29,16,20,15,37,24,18,20,32,0,39,33,37,33,46,50,45,-27,-18,-32,-4,-27]} 1. d4 {[%emt 0:05:32]} d5 {[%emt 0:00:14]} 2. c4 {[%emt 0:00:05]} c6 {[%emt 0:00:08]} 3. Nf3 {[%emt 0:00:23]} Nf6 {[%emt 0:00:25]} 4. e3 {[%emt 0:00:02]} Bf5 {[%emt 0:00:44]} 5. Nc3 {[%emt 0:00:05]} e6 {[%emt 0:00:31]} 6. Nh4 {[%emt 0:00:10]} Be4 {[%emt 0:00:33]} 7. f3 {[%emt 0:00:11]} Bg6 {[%emt 0:00:06]} 8. Bd2 {[%emt 0:00:12]} Nbd7 {[%emt 0:02:03]} 9. Nxg6 {[%emt 0:14:08]} hxg6 {[%emt 0:03:31] White has an edge.} 10. Qb3 {[%emt 0:08:21]} Qb6 {[%emt 0:01:28]} 11. Kf2 {[%emt 0:00:46]} Qxb3 {[%emt 0:05:54]} 12. axb3 {[%emt 0:01:21]} a6 {[%emt 0:00:07]} 13. g4 {[%emt 0:00:54]} g5 {[%emt 0:04:12]} 14. Kg2 {[%emt 0:00:12]} Bd6 {[%emt 0:02:47]} 15. cxd5 {[%emt 0:00:39]} ({White should play} 15. Be1 $14) 15... Nxd5 $11 {[%emt 0:03:10]} 16. h3 {[%emt 0:05:05]} f6 {[%emt 0:03:47]} 17. Bd3 {[%emt 0:06:13] Weighted Error Value: White=0.19 (very precise) /Black=0.13 (very precise) .  Mistake:       	White=1     	---        Inaccurate:     	White=1     	Black=2      OK:         	White=2     	Black=2} 1/2-1/2

[Event "XTX Markets London Masters 2024"]
[Site "London"]
[Date "2024.11.30"]
[Round "3.2"]
[White "Zhang, Pengxiang"]
[Black "Korneev, Oleg"]
[Result "1/2-1/2"]
[ECO "C67"]
[WhiteElo "2567"]
[BlackElo "2459"]
[Annotator "TA"]
[PlyCount "48"]
[EventDate "2024.11.28"]
[EventType "swiss"]
[EventCountry "ENG"]
[SourceTitle "playchess.com"]
[Source "ChessBase"]
[SourceQuality "1"]
[TimeControl "40/5400+30:1800+30"]

{[%evp 16,48,12,11,8,7,12,0,11,0,10,0,0,0,5,4,2,0,6,0,13,0,20,16,17,12,22,14,27,6,12,10,13,0,0]} 1. e4 {[%emt 0:00:04]} e5 {[%emt 0:09:22]} 2. Nf3 {[%emt 0:01:18]} Nc6 {[%emt 0:03:07]} 3. Bb5 {[%emt 0:00:38]} Nf6 {[%emt 0:00:02]} 4. O-O {[%emt 0:03:29][%cal Bh1f1,Bf1e1,Be1e5][%mdl 32]} Nxe4 {[%emt 0:00:09]} 5. Re1 {[%emt 0:00:05]} Nd6 {[%emt 0:00:03]} 6. Nxe5 {[%emt 0:00:04]} Be7 {[%emt 0:00:43]} 7. Bf1 {[%emt 0:02:15]} Nxe5 {[%emt 0:00:03]} 8. Rxe5 {[%emt 0:00:07]} O-O {[%emt 0:00:03]} 9. d4 {[%emt 0:06:36]} Ne8 {[%emt 0:00:42]} 10. Nc3 {[%emt 0:14:24][%cal Bb1c3,Bc3e2,Be2c1][%mdl 32] Black is weak on the light squares} Bf6 {[%emt 0:00:12]} 11. Re1 {[%emt 0:00:39]} d5 {[%emt 0:00:02]} 12. Bf4 {[%emt 0:00:16]} c6 {[%emt 0:00:25]} 13. Ne2 {[%emt 0:05:37]} g6 {[%emt 0:27:40]} 14. c3 {[%emt 0:00:46]} Ng7 {[%emt 0:07:04]} 15. Nc1 {[%emt 0:01:00]} Bf5 {[%emt 0:02:29]} 16. a4 {[%emt 0:06:00]} Re8 {[%emt 0:04:06]} 17. Rxe8+ {[%emt 0:01:23]} Qxe8 {[%emt 0:00:04]} 18. a5 {[%emt 0:01:06]} a6 {[%emt 0:00:14]} 19. Nd3 {[%emt 0:01:00]} Bxd3 {[%emt 0:03:34]} 20. Qxd3 {[%emt 0:01:03]} Ne6 {[%emt 0:06:31]} 21. Bd2 {[%emt 0:13:24]} Bg5 {[%emt 0:01:05]} 22. Be1 {[%emt 0:02:06]} Qd7 {[%emt 0:00:55] The position is equal.} 23. g3 {[%emt 0:00:55]} Re8 {[%emt 0:00:09]} 24. b4 {[%emt 0:06:40]} Nc7 {[%emt 0:03:08] An uneventful encounter.   Weighted Error Value: White=0.04 (flawless) /Black=0.04 (flawless) .  OK:         	White=6     	Black=5      Best:        	---       	Black=1} 1/2-1/2

[Event "XTX Markets London Masters 2024"]
[Site "London"]
[Date "2024.11.30"]
[Round "3.4"]
[White "Roberson, Peter T"]
[Black "Harvey, Marcus R"]
[Result "0-1"]
[ECO "B13"]
[WhiteElo "2432"]
[BlackElo "2491"]
[Annotator "RC"]
[PlyCount "174"]
[EventDate "2024.11.28"]
[EventType "swiss"]
[EventCountry "ENG"]
[SourceTitle "playchess.com"]
[Source "ChessBase"]
[SourceQuality "1"]
[TimeControl "40/5400+30:1800+30"]

1. e4 {[%emt 0:00:03]} c6 {[%emt 0:01:24]} 2. d4 {[%emt 0:00:21]} d5 {[%emt 0:00:03]} 3. exd5 {[%emt 0:00:30]} cxd5 {[%emt 0:00:08]} 4. Bd3 {[%emt 0:00:04]} Nc6 {[%emt 0:00:30]} 5. c3 {[%emt 0:00:07]} Nf6 {[%emt 0:00:57]} 6. Bf4 {[%emt 0:00:16]} Bg4 {[%emt 0:00:35]} 7. Qb3 {[%emt 0:00:19]} Qd7 {[%emt 0:00:12]} 8. Nd2 {[%emt 0:00:41]} e6 {[%emt 0:00:12]} 9. Ngf3 {[%emt 0:00:10]} Bd6 {[%emt 0:00:37]} 10. Bxd6 {[%emt 0:00:36]} Qxd6 {[%emt 0:00:06]} 11. O-O {[%emt 0:00:12]} O-O {[%emt 0:00:20]} 12. Rfe1 {[%emt 0:03:16]} Bxf3 {[%emt 0:00:27]} 13. Nxf3 {[%emt 0:00:08]} Rfb8 {[%emt 0:00:08]} 14. a4 {[%emt 0:12:09]} Qc7 {[%emt 0:00:23]} 15. Qc2 {[%emt 0:02:21]} a6 {[%emt 0:02:56]} 16. Qe2 {[%emt 0:04:07]} Re8 {[%emt 0:07:38]} 17. Rad1 {[%emt 0:05:51]} Qe7 {[%emt 0:07:27]} 18. Bc2 {[%emt 0:04:28]} Reb8 {[%emt 0:02:29]} 19. Ne5 {[%emt 0:02:17]} Nxe5 {[%emt 0:01:16]} 20. dxe5 {[%emt 0:01:13]} Nd7 {[%emt 0:00:59]} 21. Rd4 {[%emt 0:03:17]} g6 {[%emt 0:00:14]} 22. h4 {[%emt 0:03:02]} b5 {[%emt 0:00:30]} 23. axb5 {[%emt 0:00:30]} axb5 {[%emt 0:02:31]} 24. Rb4 {[%emt 0:18:00]} Ra5 {[%emt 0:04:49]} 25. Qg4 {[%emt 0:06:08]} Rba8 {[%emt 0:01:08]} 26. Kh2 {[%emt 0:09:40]} Ra1 {[%emt 0:02:15]} 27. Rxa1 {[%emt 0:00:55]} Rxa1 {[%emt 0:00:02]} 28. Qe2 {[%emt 0:03:29]} Qd8 {[%emt 0:05:31]} 29. Qe3 {[%emt 0:05:40]} Nb6 {[%emt 0:04:00]} 30. Qf4 {[%emt 0:05:45]} Qc7 {[%emt 0:02:19]} 31. Rxb5 {[%emt 0:04:02]} Nd7 {[%emt 0:02:39]} 32. h5 {[%emt 0:03:23]} Qxe5 {[%emt 0:00:34]} 33. Qxe5 {[%emt 0:00:03]} Nxe5 {[%emt 0:00:06]} 34. hxg6 {[%emt 0:00:16]} hxg6 {[%emt 0:00:07]} 35. Kg3 {[%emt 0:00:36]} Kg7 {[%emt 0:00:45]} 36. f4 {[%emt 0:01:03]} Rc1 {[%emt 0:01:20]} 37. fxe5 {[%emt 0:03:16]} Rxc2 {[%emt 0:00:04]} 38. Kf3 {[%emt 0:00:15]} Rc1 {[%emt 0:01:35]} 39. Kf2 {[%emt 0:00:50]} g5 {[%emt 0:00:27]} 40. g4 {[%emt 0:00:25]} Rc2+ {[%emt 0:04:56]} 41. Kf3 {[%emt 0:05:05]} Rh2 {[%emt 0:02:24]} 42. Rb8 {[%emt 0:03:37]} Rh3+ {[%emt 0:01:33]} 43. Kf2 {[%emt 0:00:25]} Rd3 {[%emt 0:02:22]} 44. Rb4 {[%emt 0:01:01]} Kg6 {[%emt 0:01:21]} 45. Rb6 {[%emt 0:07:24]} Rh3 {[%emt 0:02:37]} 46. Rb8 {[%emt 0:00:22]} Kg7 {[%emt 0:02:49]} 47. Rb6 {[%emt 0:00:48]} Rh8 {[%emt 0:01:14]} 48. Ke3 {[%emt 0:04:58]} Kg6 {[%emt 0:01:02]} 49. Rb4 {[%emt 0:03:58]} Rh1 {[%emt 0:04:11]} 50. Kf2 {[%emt 0:00:58]} Rh4 {[%emt 0:01:46]} 51. Kf3 {[%emt 0:01:34]} Rh3+ {[%emt 0:05:36]} 52. Kf2 {[%emt 0:00:23]} f5 {[%emt 0:01:05]} 53. exf6 {[%emt 0:01:06]} Kxf6 {[%emt 0:00:12]} 54. Kg2 {[%emt 0:01:04]} Re3 {[%emt 0:02:27]} 55. Kf2 {[%emt 0:00:25]} Rd3 {[%emt 0:00:15]} 56. Rd4 {[%emt 0:00:15]} Rh3 {[%emt 0:00:04]} 57. Kg2 {[%emt 0:00:16]} Rh8 {[%emt 0:00:10]} 58. Rd2 {[%emt 0:02:54]} Ke5 {[%emt 0:00:59]} 59. Kg3 {[%emt 0:01:34]} Rh1 {[%emt 0:03:53]} 60. Re2+ {[%emt 0:00:46]} Kd6 {[%emt 0:00:05]} 61. Rd2 {[%emt 0:00:06]} e5 {[%emt 0:00:33]} 62. Rf2 {[%emt 0:00:50]} Rg1+ {[%emt 0:00:50]} 63. Kf3 {[%emt 0:01:13]} e4+ {[%emt 0:00:12]} 64. Ke3 {[%emt 0:00:44]} Rg3+ {[%emt 0:00:08]} 65. Ke2 {[%emt 0:00:05]} Rxg4 {[%emt 0:00:04]} 66. Rf8 {[%emt 0:00:50]} Rg2+ {[%emt 0:02:13]} 67. Ke3 {[%emt 0:00:03]} Rxb2 {[%emt 0:00:15]} 68. Rd8+ {[%emt 0:00:53]} Ke5 {[%emt 0:01:02]} 69. Re8+ {[%emt 0:00:50]} Kf5 {[%emt 0:00:12]} 70. Rd8 {[%emt 0:00:40]} Rb5 {[%emt 0:00:15]} 71. Rg8 {[%emt 0:00:37]} Kg4 {[%emt 0:02:07]} 72. Kd4 {[%emt 0:00:29]} Rb7 {[%emt 0:03:55]} 73. Rd8 {[%emt 0:00:27]} Re7 {[%emt 0:00:21]} 74. Ke3 {[%emt 0:00:09]} Re5 {[%emt 0:00:04]} 75. Ra8 {[%emt 0:00:53]} Rf5 {[%emt 0:00:13]} 76. Kd4 {[%emt 0:00:18]} Kf4 {[%emt 0:01:39]} 77. Ra1 {[%emt 0:00:35]} g4 {[%emt 0:00:11]} 78. Rf1+ {[%emt 0:00:26]} Kg5 {[%emt 0:00:05]} 79. Rg1 {[%emt 0:00:03]} Kh4 {[%emt 0:44:57]} 80. c4 {[%emt 0:01:06]} dxc4 {[%emt 0:00:00]} 81. Kxe4 {[%emt 0:00:02]} Rf8 {[%emt 0:00:00]} 82. Rh1+ {[%emt 0:00:11]} Kg3 {[%emt 0:00:00]} 83. Rc1 {[%emt 0:00:03]} Kh2 {[%emt 0:00:00]} 84. Rxc4 {[%emt 0:00:28]} g3 {[%emt 0:00:00]} 85. Rc7 {[%emt 0:00:14]} g2 {[%emt 0:00:00]} 86. Rh7+ {[%emt 0:00:07]} Kg3 {[%emt 0:00:00]} 87. Rg7+ {[%emt 0:00:12]} Kf2 {[%emt 0:00:00]} 0-1

[Event "XTX Markets London Masters 2024"]
[Site "London"]
[Date "2024.11.30"]
[Round "3.5"]
[White "Barnaure, Vlad-Victor"]
[Black "Goh, Jinghan Cameron"]
[Result "0-1"]
[ECO "D42"]
[WhiteElo "2480"]
[BlackElo "2017"]
[Annotator "RC"]
[PlyCount "120"]
[EventDate "2024.11.28"]
[EventType "swiss"]
[EventCountry "ENG"]
[SourceTitle "playchess.com"]
[Source "ChessBase"]
[SourceQuality "1"]
[TimeControl "40/5400+30:1800+30"]

1. d4 {[%emt 0:07:51]} Nf6 {[%emt 0:00:05]} 2. Nf3 {[%emt 0:00:06]} d5 {[%emt 0:00:12]} 3. c4 {[%emt 0:00:07]} e6 {[%emt 0:00:05]} 4. Nc3 {[%emt 0:00:30]} c5 {[%emt 0:01:50]} 5. cxd5 {[%emt 0:00:09]} Nxd5 {[%emt 0:00:05]} 6. e3 {[%emt 0:00:56]} Be7 {[%emt 0:03:52]} 7. Bd3 {[%emt 0:00:44]} Nc6 {[%emt 0:01:04]} 8. O-O {[%emt 0:00:28]} O-O {[%emt 0:02:33]} 9. a3 {[%emt 0:05:00]} cxd4 {[%emt 0:01:10]} 10. exd4 {[%emt 0:00:07]} Bf6 {[%emt 0:00:39]} 11. Be3 {[%emt 0:03:05]} Bd7 {[%emt 0:06:59]} 12. Ne4 {[%emt 0:03:45]} Nce7 {[%emt 0:01:49]} 13. Qe2 {[%emt 0:05:27]} Bc6 {[%emt 0:02:32]} 14. Rad1 {[%emt 0:00:26]} Qc7 {[%emt 0:01:55]} 15. Nxf6+ {[%emt 0:08:02]} gxf6 {[%emt 0:04:59]} 16. Nh4 {[%emt 0:02:38]} Ng6 {[%emt 0:05:01]} 17. Qh5 {[%emt 0:02:10]} Ndf4 {[%emt 0:04:39]} 18. Bxf4 {[%emt 0:05:01]} Qxf4 {[%emt 0:00:23]} 19. d5 {[%emt 0:00:21]} Bxd5 {[%emt 0:10:56]} 20. Rfe1 {[%emt 0:13:40]} Qg5 {[%emt 0:08:18]} 21. Qxg5 {[%emt 0:01:27]} fxg5 {[%emt 0:00:12]} 22. Nxg6 {[%emt 0:00:06]} hxg6 {[%emt 0:00:12]} 23. Be4 {[%emt 0:07:53]} Bxe4 {[%emt 0:00:33]} 24. Rxe4 {[%emt 0:00:06]} Rfd8 {[%emt 0:01:11]} 25. Red4 {[%emt 0:00:22]} Rxd4 {[%emt 0:00:15]} 26. Rd2 {[%emt 0:33:03]} Rd3 27. Rxd3 {[%emt 0:00:00]} Rc8 {[%emt 0:00:48]} 28. Rd4 {[%emt 0:00:00]} Rc3 {[%emt 0:42:13]} 29. g4 Rc2 {[%emt 0:00:00]} 30. b4 {[%emt 0:00:00]} Rc3 {[%emt 0:00:00]} 31. a4 {[%emt 0:00:00]} Rb3 {[%emt 0:00:00]} 32. b5 {[%emt 0:00:00]} Ra3 {[%emt 0:00:00]} 33. Rc4 {[%emt 0:00:00]} b6 {[%emt 0:00:00]} 34. Kg2 {[%emt 0:00:00]} Kf8 {[%emt 0:00:00]} 35. Rc8+ {[%emt 0:00:00]} Kg7 {[%emt 0:00:00]} 36. Rc4 {[%emt 0:00:00]} Kf6 {[%emt 0:00:00]} 37. h3 {[%emt 0:00:00]} Ke5 {[%emt 0:00:00]} 38. Rc7 {[%emt 0:00:00]} Rxa4 {[%emt 0:00:00]} 39. Rxf7 {[%emt 0:00:00]} Rb4 {[%emt 0:00:00]} 40. Rxa7 {[%emt 0:00:00]} Rxb5 {[%emt 0:00:00]} 41. Rg7 {[%emt 0:12:41]} Kf6 {[%emt 0:06:13]} 42. Rb7 {[%emt 0:25:19]} Rb3 {[%emt 0:00:13]} 43. Rb8 {[%emt 0:00:00]} b5 {[%emt 0:00:20]} 44. Rf8+ {[%emt 0:00:00]} Ke7 {[%emt 0:00:18]} 45. Rg8 {[%emt 0:00:00]} Kf7 {[%emt 0:00:36]} 46. Rb8 {[%emt 0:00:00]} b4 {[%emt 0:01:12]} 47. Rb5 {[%emt 0:00:00]} Kf6 {[%emt 0:00:07]} 48. Kh2 {[%emt 0:00:00]} Rb1 {[%emt 0:03:54]} 49. Kg2 {[%emt 0:00:00]} b3 {[%emt 0:00:22]} 50. Kh2 {[%emt 0:00:00]} Ke7 {[%emt 0:02:04]} 51. Kg2 {[%emt 0:00:00]} Kd6 {[%emt 0:04:59]} 52. Rxg5 {[%emt 0:00:00]} Kc6 {[%emt 0:00:16]} 53. Rxg6 {[%emt 0:00:00]} Re1 {[%emt 0:00:22]} 54. Rg8 {[%emt 0:00:00]} b2 {[%emt 0:00:06]} 55. Rb8 {[%emt 0:00:00]} b1=Q {[%emt 0:00:06]} 56. Rxb1 {[%emt 0:00:00]} Rxb1 {[%emt 0:00:03]} 57. Kg3 {[%emt 0:00:00]} Kd5 {[%emt 0:00:24]} 58. Kf4 {[%emt 0:00:00]} Rh1 {[%emt 0:00:51]} 59. g5 {[%emt 0:00:00]} Rxh3 {[%emt 0:00:28]} 60. g6 {[%emt 0:00:00]} Rh2 {[%emt 0:00:15]} 0-1

[Event "XTX Markets London Masters 2024"]
[Site "London"]
[Date "2024.11.30"]
[Round "3.6"]
[White "Fier, Alexandr"]
[Black "Tanmay Chopra"]
[Result "1-0"]
[ECO "E48"]
[WhiteElo "2544"]
[BlackElo "2361"]
[Annotator "RC"]
[PlyCount "97"]
[EventDate "2024.11.28"]
[EventType "swiss"]
[EventCountry "ENG"]
[SourceTitle "playchess.com"]
[Source "ChessBase"]
[SourceQuality "1"]
[TimeControl "40/5400+30:1800+30"]

1. d4 {[%emt 0:00:03]} Nf6 {[%emt 0:00:36]} 2. c4 {[%emt 0:00:05]} e6 {[%emt 0:00:04]} 3. Nc3 {[%emt 0:00:04]} Bb4 {[%emt 0:00:47]} 4. e3 {[%emt 0:00:07]} O-O {[%emt 0:00:06]} 5. Bd3 {[%emt 0:00:10]} d5 {[%emt 0:01:08]} 6. cxd5 {[%emt 0:00:07]} exd5 {[%emt 0:00:07]} 7. a3 {[%emt 0:00:03]} Bd6 {[%emt 0:02:01]} 8. Qc2 {[%emt 0:00:06]} b6 {[%emt 0:09:17]} 9. Nb5 {[%emt 0:02:01]} Ba6 {[%emt 0:05:20]} 10. Nxd6 {[%emt 0:02:24]} Bxd3 {[%emt 0:00:57]} 11. Qxd3 {[%emt 0:00:05]} Qxd6 {[%emt 0:00:04]} 12. Nf3 {[%emt 0:00:02]} a5 {[%emt 0:04:14]} 13. O-O {[%emt 0:02:01]} a4 {[%emt 0:05:21]} 14. Bd2 {[%emt 0:00:04]} Nbd7 {[%emt 0:02:36]} 15. Rfd1 {[%emt 0:01:12]} Rfc8 {[%emt 0:11:55]} 16. Rac1 {[%emt 0:02:02]} Ne4 {[%emt 0:05:22]} 17. Be1 {[%emt 0:00:08]} c6 {[%emt 0:02:47]} 18. Rc2 {[%emt 0:03:36]} b5 {[%emt 0:18:28]} 19. Rdc1 {[%emt 0:01:04]} Nb6 {[%emt 0:00:22]} 20. Ne5 {[%emt 0:00:07]} Nc4 {[%emt 0:00:05]} 21. f3 {[%emt 0:01:51]} Nf6 {[%emt 0:00:04]} 22. Bc3 {[%emt 0:19:40]} Nd7 {[%emt 0:01:54]} 23. Nxc4 {[%emt 0:00:40]} bxc4 {[%emt 0:00:10]} 24. Qd1 {[%emt 0:00:05]} Nf8 {[%emt 0:01:20]} 25. Re2 {[%emt 0:01:51]} Qg6 {[%emt 0:02:43]} 26. Qd2 {[%emt 1:03:52]} Ne6 {[%emt 0:07:40]} 27. Kh1 {[%emt 0:00:00]} Rd8 {[%emt 0:01:56]} 28. Rce1 {[%emt 0:00:00]} h6 {[%emt 0:02:02]} 29. Qc1 {[%emt 0:00:00]} Rab8 {[%emt 0:02:17]} 30. e4 {[%emt 0:00:00]} Qg5 {[%emt 0:06:07]} 31. Qc2 {[%emt 0:00:00]} Rb3 {[%emt 0:00:07]} 32. exd5 {[%emt 0:00:00]} cxd5 {[%emt 0:05:53]} 33. g3 {[%emt 0:00:00]} Qf6 {[%emt 0:00:26]} 34. f4 {[%emt 0:00:00]} g6 {[%emt 0:02:02]} 35. Re5 {[%emt 0:00:00]} Ng7 {[%emt 0:00:20]} 36. Qg2 {[%emt 0:00:00]} Rb5 {[%emt 0:00:26]} 37. Bb4 {[%emt 0:00:00]} Qb6 {[%emt 0:00:02]} 38. Qh3 {[%emt 0:00:00]} Rxb4 {[%emt 0:01:41]} 39. axb4 {[%emt 0:00:00]} Qxd4 {[%emt 0:00:36]} 40. Qxh6 {[%emt 0:00:00]} Qxb2 {[%emt 0:00:26]} 41. f5 {[%emt 0:00:00]} gxf5 {[%emt 0:05:16]} 42. Rxf5 {[%emt 0:00:00]} a3 {[%emt 0:06:46]} 43. Qg5 {[%emt 0:00:00]} Rc8 {[%emt 0:08:04]} 44. Rff1 {[%emt 0:00:00]} Qd4 {[%emt 0:11:41]} 45. Rf4 {[%emt 0:00:00]} Qc3 {[%emt 0:00:02]} 46. Ref1 {[%emt 0:00:00]} a2 {[%emt 0:00:39]} 47. Qxd5 {[%emt 0:00:00]} Rf8 {[%emt 0:01:10]} 48. Qa5 {[%emt 0:00:00]} Qb3 {[%emt 0:00:29]} 49. R4f2 {[%emt 0:00:00]} 1-0

[Event "XTX Markets London Masters 2024"]
[Site "London"]
[Date "2024.11.30"]
[Round "3.7"]
[White "Czopor, Maciej"]
[Black "Hera, Imre Jr."]
[Result "1/2-1/2"]
[ECO "B12"]
[WhiteElo "2383"]
[BlackElo "2522"]
[Annotator "RC"]
[PlyCount "61"]
[EventDate "2024.11.28"]
[EventType "swiss"]
[EventCountry "ENG"]
[SourceTitle "playchess.com"]
[Source "ChessBase"]
[SourceQuality "1"]
[TimeControl "40/5400+30:1800+30"]

1. e4 {[%emt 0:03:53]} c6 {[%emt 0:01:33]} 2. d4 {[%emt 0:00:40]} d5 {[%emt 0:00:06]} 3. e5 {[%emt 0:00:06]} Bf5 {[%emt 0:00:05]} 4. h4 {[%emt 0:00:04]} h5 {[%emt 0:01:07]} 5. Bd3 {[%emt 0:00:04]} Bxd3 {[%emt 0:00:06]} 6. Qxd3 {[%emt 0:00:03]} Qa5+ {[%emt 0:00:13]} 7. Nd2 {[%emt 0:00:08]} e6 {[%emt 0:00:04]} 8. Ngf3 {[%emt 0:00:03]} Ne7 {[%emt 0:00:17]} 9. O-O {[%emt 0:00:13]} Nf5 {[%emt 0:00:04]} 10. Nb3 {[%emt 0:00:03]} Qa6 {[%emt 0:00:42]} 11. Qd1 {[%emt 0:00:04]} Be7 {[%emt 0:00:24]} 12. Bg5 {[%emt 0:08:28]} Bxg5 {[%emt 0:01:15]} 13. hxg5 {[%emt 0:00:05]} Nd7 {[%emt 0:18:30]} 14. g6 {[%emt 0:10:27]} fxg6 {[%emt 0:00:21]} 15. Ng5 {[%emt 0:00:04]} Ke7 {[%emt 0:00:04]} 16. Qd2 {[%emt 0:00:24]} Qb6 {[%emt 0:00:10]} 17. a4 {[%emt 0:01:03]} a5 {[%emt 0:01:15]} 18. Rfd1 {[%emt 0:02:49]} Rhf8 {[%emt 0:12:30]} 19. Nc1 {[%emt 0:02:23]} c5 {[%emt 0:04:48]} 20. Ne2 {[%emt 0:04:53]} Nxd4 {[%emt 0:06:00]} 21. Nxd4 {[%emt 0:00:05]} cxd4 {[%emt 0:00:05]} 22. Nf3 {[%emt 0:00:28]} Kf7 {[%emt 0:14:46]} 23. Qg5 {[%emt 0:01:43]} Qd8 {[%emt 0:03:47]} 24. Qg3 {[%emt 0:00:19]} Nc5 {[%emt 0:02:03]} 25. Rxd4 {[%emt 0:01:19]} Qe7 {[%emt 0:01:10]} 26. Nh4 {[%emt 0:03:12]} g5 {[%emt 0:02:05]} 27. Qf3+ {[%emt 0:00:07]} Ke8 {[%emt 0:00:10]} 28. Qxh5+ {[%emt 0:00:05]} Qf7 {[%emt 0:00:03]} 29. Qxf7+ {[%emt 0:01:12]} Rxf7 {[%emt 0:02:10]} 30. Nf3 {[%emt 0:00:06]} Rf4 {[%emt 0:06:26]} 31. b3 {[%emt 0:06:26]} 1/2-1/2